Cogmind - Beta 16.1 @@@ ROGUE MODE // 2026.03.20 @ 21:10:14 Player: TheSkyeDoctor Result: Destroyed by Y-45 Defender with Beam Rifle Performance ------------- Evolutions (2) 1000 Regions Visited (4) 800 Robots Destroyed (38) 190 Value Destroyed (1123) 1123 Prototype IDs (0) 0 Alien Tech Used (0) 0 Bonus (0) 0 TOTAL SCORE: 3113 Bonus ------- None Cogmind --------- Core Integrity 0/550 Matter 62/300 Energy 100/100 System Corruption 0% Temperature Cool (9) Movement Core (400) Ox7 Location -8/Storage Parts ------- > --- POWER (1) -------- (None) > --- PROPULSION (2) --- (None) > --- UTILITY (5) ------ Large Storage Unit Improved Signal Interpreter Melee Analysis Suite > --- WEAPON (3) ------- Katana > --- INVENTORY (15) --- Light Treads Heat Sink Cargo Storage Unit High-capacity Matter Pod (150) Improved Terrain Scanner Katana Peak State ------------ > --- POWER ------------ Light Nuclear Core > --- PROPULSION ------- Light Treads Light Treads > --- UTILITY ---------- Large Storage Unit Improved Signal Interpreter Seismic Detector Melee Analysis Suite Light Armor Plating > --- WEAPON ----------- Assault Cannon Assault Cannon Katana > --- INVENTORY -------- Light Treads Light Treads Heat Sink Cargo Storage Unit High-capacity Matter Pod Improved Terrain Scanner Katana [Rating: 24] Favorites ----------- Power Light Ion Engine Engine Light Ion Engine Power Core Light Nuclear Core Propulsion Light Treads Treads Light Treads Wheel Compact Wheel Utility Seismic Detector Device Seismic Detector Storage Large Storage Unit Processor Melee Analysis Suite Protection Light Armor Plating Weapon Assault Rifle Energy Gun Medium Laser Ballistic Gun Assault Rifle Ballistic Cannon Assault Cannon Impact Weapon Flail Slashing Weapon Katana Build | -11 -10 -9 -8 -8 ------- Run | Yrd Mat Mat Mat Sto Slots Evolved 4 | . . 2 2 . Power . | . . . . . Propulsion . | . . . . . Utility 3 | . . 2 1 . Weapon 1 | . . . 1 . Parts Attached 33 | 7 . 11 11 4 Power 6 | 1 . 2 2 1 Engine 5 | 1 . 2 2 . Core 1 | . . . . 1 Reactor . | . . . . . Propulsion 8 | 2 . 3 1 2 Treads 5 | 2 . . 1 2 Leg . | . . . . . Wheel 3 | . . 3 . . Hover . | . . . . . Flight . | . . . . . Utility 12 | 2 . 4 5 1 Device 4 | 1 . 1 2 . Storage 5 | 1 . 3 1 . Processor 2 | . . . 2 . Hackware . | . . . . . Protection 1 | . . . . 1 Artifact . | . . . . . Weapon 7 | 2 . 2 3 . Energy Gun 1 | 1 . . . . Energy Cannon . | . . . . . Ballistic Gun 2 | 1 . 1 . . Ballistic Cannon 2 | . . . 2 . Launcher . | . . . . . Special Weapon . | . . . . . Impact Weapon 1 | . . 1 . . Slashing Weapon 1 | . . . 1 . Piercing Weapon . | . . . . . Special Melee Weapon . | . . . . . Unidentified Prototypes . | . . . . . Parts Lost 22 | . . 5 7 10 Power 5 | . . 2 1 2 Propulsion 7 | . . 2 2 3 Utility 5 | . . . 2 3 Weapon 5 | . . 1 2 2 Highest Loss Streak 10 | . . 3 7 10 To Critical Strikes . | . . . . . Average Backups 5 | 2 4 5 5 7 Power . | . 1 . . . Propulsion 1 | 1 2 1 . 1 Utility 2 | . 1 2 3 4 Weapon . | . . 1 . 1 Tool/Special . | . . . . . Unused Backups 2 | . . . . 2 Power . | . . . . . Propulsion . | . . . . . Utility 1 | . . . . 1 Weapon 1 | . . . . 1 Tool/Special . | . . . . . Average Slot Usage (%) 84 | . 100 82 74 94 Engine 9 | . 14 10 5 6 Treads 13 | . 28 10 12 16 Wheel 7 | . . 10 5 . Device 13 | . 14 12 13 15 Storage 14 | . 14 16 11 9 Processor 3 | . . . 7 18 Energy Gun 4 | . 14 6 . . Ballistic Gun 10 | . 14 13 5 . Ballistic Cannon 3 | . . . 4 16 Impact Weapon 1 | . . 2 1 . Slashing Weapon 2 | . . . 7 9 Peak Build Rating 24 | 7 7 11 23 24 Average Rating 11 | 5 7 9 15 21 On Entrance 9 | . 7 7 10 23 Avg Prop Armor Cover (%) . | . . . . . Naked Turns . | . . . . . Heaviest Build 157 | 15 15 153 157 41 Greatest Support 40 | 40 40 40 40 40 Greatest Overweight (x) 9 | . . 9 6 1 Average Overweight (x) 1 | . . 2 1 . Largest Inventory Capacity 30 | 8 8 30 30 15 Average Capacity 17 | 6 8 21 19 15 Most Carried 10 | 4 4 10 8 10 Average Carried 5 | 3 4 5 6 8 Final Capacity 30 | 8 8 30 15 15 Final Carried 7 | 4 4 6 7 7 Class Distribution -------------------- 60% | Mutant 32% | Hauler-Mutant 7% | Scavenger-Mutant Dominant Class ---------------- Mutant | -10/Materials Hauler-Mutant | -9/Materials Mutant | -8/Materials Scavenger-Mutant | -8/Storage Resources | -11 -10 -9 -8 -8 ----------- Run | Yrd Mat Mat Mat Sto Matter Collected 1014 | 285 42 452 153 82 Remotely . | . . . . . Salvage Created 1429 | 113 83 778 153 302 Parts 81 | 9 7 38 7 20 Haulers Intercepted 1 | . . . . 1 Recyclers Shooed 1 | . . 1 . . Parts Field Recycled . | . . . . . Retrieved Matter . | . . . . . Parts Self-Destructed . | . . . . . Prevented . | . . . . . Parts Restored . | . . . . . Kills | -11 -10 -9 -8 -8 ------- Run | Yrd Mat Mat Mat Sto Combat Hostiles Destroyed 27 | . 1 13 3 10 Melee 5 | . . 1 3 1 Guns 12 | . 1 11 . . Cannons 9 | . . . . 9 Classes Destroyed 10 | 2 2 3 1 2 Worker 2 | . . 2 . . Tunneler 2 | 2 . . . . Hauler 1 | . . . . 1 Recycler 2 | 1 . 1 . . Watcher 4 | . 2 2 . . Swarmer 4 | . . . . 4 Grunt 16 | . 1 8 2 5 Brawler 1 | . . 1 . . Duelist 1 | . . . 1 . Sentry 5 | . . 4 . 1 Best Kill Streak 8 | 3 3 3 1 8 Combat Bots Only 7 | . 1 3 1 7 Max Kills in Single Turn 1 | 1 1 1 1 1 Gunslinging . | . . . . . Exploded . | . . . . . Melee 1 | . . 1 1 1 Uniques/NPCs Destroyed . | . . . . . Combat | -11 -10 -9 -8 -8 -------- Run | Yrd Mat Mat Mat Sto Hostile Shots Fired 279 | . 10 78 42 149 Missed 65 | . 1 23 6 35 Hits 214 | . 9 55 36 114 Melee 6 | . . 1 5 . Projectile 208 | . 9 54 31 114 Critical Strikes 8 | . . 1 3 4 Damage Taken 2705 | . 97 757 520 1331 Core 697 | . 11 135 139 412 Absorbed by Shields 228 | . . . 105 123 Core Remaining (%) 87 | 100 95 66 . . Volleys Fired 109 | 5 14 59 4 27 Largest 2 | 2 2 2 2 2 Hottest 74 | 70 70 73 43 74 Shots Fired 204 | 10 28 106 8 52 Gun 152 | 10 28 106 8 . Cannon 52 | . . . . 52 Launcher . | . . . . . Special . | . . . . . Kinetic 154 | 5 14 75 8 52 Thermal 50 | 5 14 31 . . Explosive . | . . . . . Electromagnetic . | . . . . . Robot Hit Streak 14 | 4 7 14 1 4 Robot Miss Streak 6 | 1 4 6 2 2 Penetration Max . | . . . . . Secondary Targets 1 | . . 1 . . Max Gunslinging Chain 1 | . . 1 . . Shots Hit Robots 139 | 6 14 78 10 31 Core Hits 60 | 4 5 30 5 16 Critical Kills 1 | . . 1 . . Critical Parts Destroyed 1 | . . 1 . . Critical Strikes 7 | . . 5 1 1 Burn 3 | . . 3 . . Smash 2 | . . 2 . . Sever 2 | . . . 1 1 Melee Attacks 25 | . . 11 10 4 Impact 11 | . . 11 . . Slashing 14 | . . . 10 4 Piercing . | . . . . . Sneak Attacks . | . . . . . Combat Hostiles . | . . . . . Follow-up Attacks . | . . . . . Damage Inflicted 2693 | 76 179 1158 256 1024 Guns 1259 | 76 179 948 56 . Cannons 892 | . . . . 892 Explosions . | . . . . . Melee 541 | . . 209 200 132 Ramming 1 | . . 1 . . Kinetic 1714 | 51 80 635 56 892 Thermal 437 | 25 99 313 . . Explosive . | . . . . . Electromagnetic . | . . . . . Impact 209 | . . 209 . . Slashing 332 | . . . 200 132 Piercing . | . . . . . Highest Corruption . | . . . . . Average Corruption . | . . . . . Corruption Purged . | . . . . . Corruption Blocked . | . . . . . Overload Shots . | . . . . . Overflow Damage 71 | . . 63 . 8 Projectiles 8 | . . . . 8 Explosions . | . . . . . Melee 63 | . . 63 . . Knockbacks 9 | . . 1 . 8 Impact 1 | . . 1 . . Kinetic 7 | . . . . 7 Secondary 1 | . . . . 1 Self-Inflicted Damage . | . . . . . Shots . | . . . . . Rammed 1 | . . 1 . . Targets Rammed 1 | . . 1 . . Kicked . | . . . . . Crushed . | . . . . . Highest Temperature 126 | 36 126 45 14 90 Average Temperature 31 | 16 49 20 5 29 Received Heat Transfer 1214 | . 54 282 266 612 Siege Activations . | . . . . . Martial Activations . | . . . . . Shielding Activations . | . . . . . Robots Disrupted . | . . . . . Combat Hostiles . | . . . . . Robots Corrupted 1 | . . 1 . . Combat Hostiles 1 | . . 1 . . Parts Fried . | . . . . . Impact Corruptions 3 | . . 2 . 1 Robots Melted . | . . . . . Combat Hostiles . | . . . . . Parts Melted 7 | 1 . 6 . . Heat Transferred 1517 | 74 296 1147 . . Parts Sabotaged . | . . . . . Parts Stolen . | . . . . . Parts Stripped . | . . . . . Power Chain Reactions . | . . . . . Alert | -11 -10 -9 -8 -8 ------- Run | Yrd Mat Mat Mat Sto Maximum Alert Level . | . . . . . Low Security (%) 100 | 100 100 100 100 100 Level 1 . | . . . . . Level 2 . | . . . . . Level 3 . | . . . . . Level 4 . | . . . . . Level 5 . | . . . . . High Security . | . . . . . Max Security . | . . . . . Peak Influence 140 | 10 24 80 40 140 Initial 9 | . . . 9 . Average 24 | 1 4 32 6 51 Influence Increases 829 | 15 39 432 70 273 Destroy 0b10 Robot/C 540 | . 20 260 60 200 Destroy 0b10 Robot/NC 55 | 15 10 25 . 5 Destroy Leader 140 | . 4 84 10 42 Successful Hack 10 | . 5 . . 5 Disable Machine 30 | . . 15 . 15 Destroy Structure 9 | . . 3 . 6 Lose Combat Pursuer 45 | . . 45 . . Influence Decreases 742 | 15 39 409 93 186 Entered New Map 14 | . . . 14 . Time Decay 571 | 15 39 362 69 86 Lost Part 157 | . . 47 10 100 Squads Dispatched 4 | . . 1 . 3 Investigation . | . . . . . Extermination . | . . . . . Reinforcement 3 | . . 1 . 2 Assault . | . . . . . Garrison 1 | . . . . 1 Intercept . | . . . . . Searches Triggered . | . . . . . Construction Impeded 1 | . . . . 1 Haulers Reinforced . | . . . . . Active Scanning Responses . | . . . . . Cargo Convoy Interrupts . | . . . . . Stealth | -11 -10 -9 -8 -8 --------- Run | Yrd Mat Mat Mat Sto Distress Signals 5 | . 1 3 1 . Communications Jammed . | . . . . . Distress Signals . | . . . . . Times Spotted 53 | . 5 25 7 16 Peak Tracking Total 7 | . 3 4 4 7 Tactical Retreats 2 | . . 2 . . Traps | -11 -10 -9 -8 -8 ------- Run | Yrd Mat Mat Mat Sto Traps Triggered . | . . . . . Indirectly . | . . . . . Trap Hack Attempts . | . . . . . Triggered . | . . . . . Disarmed . | . . . . . Reprogrammed . | . . . . . Reused . | . . . . . Traps Extracted . | . . . . . Installed . | . . . . . Triggered . | . . . . . Machines | -11 -10 -9 -8 -8 ---------- Run | Yrd Mat Mat Mat Sto Machines Disabled 2 | . . 1 . 1 Max in Single Turn 1 | . . 1 . 1 Machines Repaired . | . . . . . Machines Dismantled . | . . . . . Machines Sabotaged . | . . . . . Overloaded Fab Kills . | . . . . . Hacking | -11 -10 -9 -8 -8 --------- Run | Yrd Mat Mat Mat Sto Machines Accessed 7 | . 1 4 . 2 Terminals 6 | . 1 3 . 2 Fabricators . | . . . . . Repair Stations . | . . . . . Recycling Units . | . . . . . Scanalyzers 1 | . . 1 . . Garrison Access . | . . . . . Total Hacks 15 | . 2 9 . 4 Successful 4 | . 1 1 . 2 Failed 10 | . 1 7 . 2 Catastrophic . | . . . . . Database Lockouts 1 | . . 1 . . Manual 14 | . 2 9 . 3 Terminals 13 | . 2 7 . 4 Fabricators . | . . . . . Repair Stations . | . . . . . Recycling Units . | . . . . . Scanalyzers 2 | . . 2 . . Garrison Access . | . . . . . Terminal Hacks 1 | . . . . 1 Open Door 1 | . . . . 1 Fabricator Hacks . | . . . . . Repair Station Hacks . | . . . . . Recycling Unit Hacks . | . . . . . Scanalyzer 1 | . . 1 . . Retrieve Study 1 | . . 1 . . Garrison Access Hacks . | . . . . . Unauthorized Hacks 2 | . 1 . . 1 Terminals 2 | . 1 . . 1 Botnet 2 | . 1 . . 1 Fabricators . | . . . . . Repair Stations . | . . . . . Recycling Units . | . . . . . Scanalyzers . | . . . . . Garrison Access . | . . . . . Data Cores Recovered . | . . . . . Used . | . . . . . Hacking Detections 6 | . 1 3 . 2 Full Trace Events . | . . . . . Feedback Events . | . . . . . Feedback Blocked . | . . . . . Robot Schematics Acquired . | . . . . . Robots Built . | . . . . . Authchips . | . . . . . Time . | . . . . . Total Robot Build Rating . | . . . . . Part Schematics Acquired . | . . . . . Parts Built . | . . . . . Authchips . | . . . . . Time . | . . . . . Total Part Build Rating . | . . . . . Part Studies Acquired 1 | . . 1 . . Parts Repaired . | . . . . . Time . | . . . . . Parts Recycled . | . . . . . Recycled Matter . | . . . . . Retrieved Matter . | . . . . . Retrieved Components . | . . . . . Parts Scanalyzed . | . . . . . Part Schematics Acquired . | . . . . . Parts Damaged . | . . . . . Bothacking | -11 -10 -9 -8 -8 ------------ Run | Yrd Mat Mat Mat Sto Used RIF Installer . | . . . . . Robots Hacked . | . . . . . Non-combat . | . . . . . Combat . | . . . . . Robot Hacks Applied . | . . . . . Relay Couplers Released . | . . . . . Fabnet Peak Effective % . | . . . . . Robots Rewired . | . . . . . Allies Hacked . | . . . . . Hacks Repelled . | . . . . . Allies | -11 -10 -9 -8 -8 -------- Run | Yrd Mat Mat Mat Sto Total Allies . | . . . . . Largest Group . | . . . . . Highest-Rated Group . | . . . . . Highest-Rated Ally . | . . . . . Total Orders . | . . . . . Ally Attacks . | . . . . . Total Damage . | . . . . . Kills . | . . . . . Allies Corrupted . | . . . . . Allies Melted . | . . . . . Intel | -11 -10 -9 -8 -8 ------- Run | Yrd Mat Mat Mat Sto Active Infowar (turns) 1827 | 51 186 990 378 222 Seismic 1827 | 51 186 990 378 222 Robot Analysis Total . | . . . . . Derelict Logs Recovered . | . . . . . Drone Launches . | . . . . . Drone Recoveries . | . . . . . Exploration | -11 -10 -9 -8 -8 ------------- Run | Yrd Mat Mat Mat Sto Turns Passed 1936 | 144 186 990 378 238 Spaces Moved 893 | 76 92 451 195 79 Core 5 | 5 . . . . Treads 613 | 71 92 223 148 79 Legs . | . . . . . Wheels 275 | . . 228 47 . Hover . | . . . . . Flight . | . . . . . Fastest Speed 50 | 50 160 160 160 160 Average Speed 163 | 152 160 165 163 165 Slowest Speed 240 | 160 160 240 240 240 Overloaded Moves . | . . . . . Propulsion Burnouts . | . . . . . Robots Hopped . | . . . . . Potential Cave-ins . | . . . . . Cave-ins Triggered . | . . . . . Exploration Rate (%) 22 | 4 25 54 16 15 Regions Visited 4 Branch Regions 1 Pre-discovered Areas . | . . . . . Known Exits Taken 1 | . . . 1 . Unknown Exits Taken 3 | 1 1 1 . . Scrap Searched . | . . . . . Spaces Dug 1 | . . 1 . . Terrain Destroyed 7 | . . 1 . 6 Melee 1 | . . 1 . . Projectile 6 | . . . . 6 AOE . | . . . . . Terrain Rammed . | . . . . . Walls Destroyed . | . . . . . Machines Disabled . | . . . . . Actions | -11 -10 -9 -8 -8 --------- Run | Yrd Mat Mat Mat Sto Total 1122 | 91 104 570 229 128 Wait 39 | . . 27 . 12 Move 888 | 75 90 450 194 79 Hop . | . . . . . Pick Up 13 | 4 . 5 3 1 Fast Attach 18 | 7 . 3 8 . Attach 13 | . . 6 4 3 Detach 5 | . . 3 2 . Swap 8 | . . 4 2 2 Drop 3 | . . 1 2 . Fire 109 | 5 14 59 4 27 Melee 25 | . . 11 10 4 Ram . | . . . . . Kick . | . . . . . Crush 1 | . . 1 . . Escape Stasis . | . . . . . Rewire . | . . . . . Trap . | . . . . . Miscellaneous . | . . . . . Route ------- -11/Scrapyard -10/Materials (discovered 2 exits: *Mat / [*Min]) -9/Materials (discovered 2 exits: [*Mat] / [*Min]) -8/Materials -8/Storage History --------- Turn | Location | Event 23 | -11/Scrapyard | Discovered new exit (range 15) 145 | -11/Scrapyard | Entered Materials 247 | -10/Materials | Discovered new exit (range 16) 265 | -10/Materials | Discovered new exit (range 14) 317 | -10/Materials | Build established: Mutant 331 | -10/Materials | Entered another Materials area 331 | -9/Materials | Evolved 2 slots: Utility x2 367 | -9/Materials | Central database locked down 916 | -9/Materials | Lost 3 parts (1p1n1w) 925 | -9/Materials | Discovered new exit (range 13) 1119 | -9/Materials | Build established: Hauler-Mutant 1230 | -9/Materials | Discovered new exit (range 16) 1321 | -9/Materials | Entered another Materials area 1321 | -8/Materials | Evolved 2 slots: Utility x1, Weapon x1 1463 | -8/Materials | Lost 7 parts (1p2n2u2w) 1683 | -8/Materials | Discovered new exit (range 11) 1697 | -8/Materials | Identified exit to Storage 1699 | -8/Materials | Entered Storage 1720 | -8/Storage | Build established: Mutant 1855 | -8/Storage | Garrison activated, responded to threat 1882 | -8/Storage | Destroyed 7 combat bots 1928 | -8/Storage | Core integrity fell below 50% 1933 | -8/Storage | Core integrity fell below 20% 1937 | -8/Storage | Destroyed by Y-45 Defender with Beam Rifle Last Messages --------------- 01915_ G-47 Trooper destroyed. 01916_ Assault Cannon destroyed. 01918_ G-47 Trooper knocked back. 01919_ U-05 Engineer builds a Wall. 01920_ G-47 Trooper knocked back. 01921_ Seismic Detector destroyed. 01921_ Critical hit (Burn: +37). 01922_ U-05 Engineer builds a Wall. 01924_ Assault Cannon destroyed. 01925_ Lgt. Treads destroyed. 01928_ K-01 Serf collects debris. 01930_ U-05 Engineer builds a Wall. 01930_ K-01 Serf collects debris. 01930_ U-05 Engineer suffers critical hit (Burn). 01932_ Critical hit (Burn: +37). 01932_ K-01 Serf collects debris. 01933_ Y-45 Defender Hvy. Assault Rifle severed. 01935_ G-47 Trooper destroyed. 01936_ K-01 Serf collects debris. Map ----- +----------------------------------------------------+ | ?????????????????????????????????????????????????? | | ?????????????????????????????????????????????????? | | ?????????????????????????????????????????????????? | | ?????????????????????????????????????????????????? | | ?????????????????????????????????????????????????? | | ?????????????????????????????????????????????????? | | ?????????????????????????????????????????????????? | | ?????????????????????????????????????????????????? | | ?????????????????????????????????????????????????? | | ?????????????????????????????????????????????????? | | ?????????????????????????????????????????????????? | | ?????????????????????????????????????????????????? | | ?????????????????????????????????????????????????? | | ?????????????????????????????????????????????????? | | ?????????????????????????????????????????????????? | | ?????????????????????????????????????????????????? | | ???????????????#######??????????????#????????????? | | ???????????????# #???????????? #????????????? | | ???????????????# #?????????? ?????????????? | | ???????????????# #?###????? ???????????????? | | ???????????????# #########+##!#######???????? | | ???????????????# # k%% %*^=%%=[%* ?????? | | ???????????????# #%g % =%!!=!=%[[[%%?????? | | ???????????????# #= kk[ =% %[=%=[[ ?????? | | ???????????????# ;YY%###"#######"#####??????? | | ??????########?# u !@Y#?##??????????????????? | | ??????#!!!!#T### # T#?????????????????????? | | ??????# ## # "#?????????????????????? | | ??????#!!!!# ## # ###########????????????? | | ??????###??# ## # # #????????????? | | ?????########+######### # #????????????? | | ?????# # """ """ ##???????????? | | ?????# + """ """ #???????????? | | ?????# # """ """!#????????????? | | ?????###################### [ #????????????? | | ??????????????????????????# [#????????????? | | ??????????????????????????# #????????????? | | ??????????????????????????###########????????????? | | | | | | | | | | | | | | | | | | | | | | | | | +----------------------------------------------------+ Best States ------------- Heat Dissipation 38 Energy Generation 14 Energy Capacity 340 Matter Stores 434 Matter Capacity 500 Sight Range 16 Terrain Scan Density 10 Armor Coverage 150 Evasion (%) 40 Melee Accuracy 5 Recoil Reduction 2 Item Schematics ----------------- None Robot Schematics ------------------ None Fabricated ------------ Nothing Repaired ---------- Nothing Studied --------- Med. Laser | -9/Materials | Hacked Alien Tech Used ----------------- None Achievements -------------- None Challenges ------------ None Game ------ Seed TripodDeliveryFlail Manual? 0 Play Time 00:15:08 Cumulative 74.3 hours Start 2026.03.20 @ 17:47:20 End 2026.03.20 @ 21:10:14 Sessions 1 Manual Loads 0 Difficulty Rogue Special Mode None Game No. 171 Rogue 171 Adventurer 0 Explorer 0 Win Type - Total 0 Types 0/0/0/0/0/0/0/0/0/0 Lore% 39 Gallery% 44 Achievement% 35 Wizard Run 0 Options --------- Layout 2 ASCII 0 Keyboard 1 Movement Arrows Keybinds 0 Fullscreen 1 Font 24/Smallcaps Map View 50x44 Zoom Use 0% Tactical HUD 1 Map Filters NONE Filters NONE Steam 1 RUN: 3200aaac-7e8a-48c8-8452-a128d6953463